Workbook

Sheet 12 let
A1: Liberecká vzduchovková liga 2015/16 - CELKOVÉ POŘADÍ
A2: Disciplína | C2: Vzduchová puška 30 ran vleže
A3: Kategorie | C3: Do 12 let
A5: Pořadí | B5: Jméno | C5: RN | D5: Č. průkazu | E5: Klub | F5: 1.kolo | G5: 2.kolo | H5: 3.kolo | I5: 4.kolo | J5: Celkem
A6: 1 | B6: MIKULČÍKOVÁ Kateřina | C6: 2004 | D6: 40432 | E6: 0905 - SSK Liberec | F6: 298 | G6: 299 | H6: 300 | I6: 300 | J6: =SUM(F6:I6)-MIN(F6:I6) -> 899
A7: 2 | B7: KUBROVÁ Anna | C7: 2005 | D7: 39906 | E7: 0366 - SSK Ruprechtice | F7: 298 | G7: 299 | H7: 299 | I7: 299 | J7: 897
A8: 3 | B8: BOHÁČKOVÁ Klára | C8: 2004 | D8: 40866 | E8: 0905 - SSK Liberec | F8: 297 | G8: 294 | H8: 300 | I8: 299 | J8: 896
A9: 4 | B9: VADINSKÁ Denisa | C9: 2004 | D9: 40236 | E9: 0045 - SSK DDM Kolín | F9: 297 | G9: 299 | H9: 298 | I9: 297 | J9: 894
A10: 5 | B10: BEZOUŠKOVÁ Jolana | C10: 2005 | D10: 40749 | E10: 0348 - SSK Brandýs nad Labem | F10: 292 | G10: 299 | H10: 293 | I10: 0 | J10: 884
A11: 6 | B11: JANOUŠKOVÁ Kateřina | C11: 2004 | D11: 39985 | E11: 0205 - SSK ŠKODA Mladá Boleslav | F11: 294 | G11: 291 | H11: 295 | I11: 291 | J11: 880
A12: 7 | B12: HNĚVSOVÁ Hana | C12: 2004 | D12: 40153 | E12: 0032 - SSK Bohemia Poděbrady | F12: 293 | G12: 291 | H12: 291 | I12: 289 | J12: 875
A13: 7 | B13: KUČERA Adam | C13: 2005 | D13: 0 | E13: 0200 - SSK Manušice | F13: 288 | G13: 292 | H13: 294 | I13: 289 | J13: 875
A14: 9 | B14: KIMÁK Lukáš | C14: 2006 | D14: 0 | E14: 0366 - SSK Ruprechtice | F14: 290 | G14: 290 | H14: 291 | I14: 289 | J14: 871
A15: 10 | B15: WOLF Martin | C15: 2004 | D15: 0 | E15: 0200 - SSK Manušice | F15: 287 | G15: 281 | H15: 289 | I15: 0 | J15: 857
A16: 10 | B16: MAZÁNEK Filip | C16: 2004 | D16: 40142 | E16: 0200 - SSK Manušice | F16: 278 | G16: 282 | H16: 285 | I16: 290 | J16: 857
A17: 10 | B17: REGNEROVÁ Nikola | C17: 2005 | D17: 40867 | E17: 0905 - SSK Liberec | F17: 0 | G17: 286 | H17: 285 | I17: 286 | J17: 857
A18: 13 | B18: ZAKOUŘIL Štěpán | C18: 2004 | D18: 0 | E18: 0366 - SSK Ruprechtice | F18: 0 | G18: 269 | H18: 265 | I18: 286 | J18: 820
A19: 14 | B19: PAVLÍK Matěj | C19: 2004 | D19: 40926 | E19: 0301 - SSK Stromovka České Budějovice | F19: 261 | G19: 263 | H19: 252 | I19: 287 | J19: 811
A20: 15 | B20: HRABÁKOVÁ Bára | C20: 2005 | D20: 0 | E20: 0159 - SSK Chrastava | F20: 0 | G20: 241 | H20: 245 | I20: 253 | J20: 739
A21: 16 | B21: SEGEŠ Vojtěch | C21: 2004 | D21: 0 | E21: 0055 - SSK KSS LOYD Jablonec nad Nisou | F21: 0 | G21: 248 | H21: 241 | I21: 237 | J21: 726
A22: 17 | B22: RÖHRICH Matyáš | C22: 2006 | D22: 0 | E22: 0055 - SSK KSS LOYD Jablonec nad Nisou | F22: 0 | G22: 229 | H22: 220 | I22: 246 | J22: 695
A23: 18 | B23: DOLEČEK Ondřej | C23: 2004 | D23: 0 | E23: 0190-SSK Přezletice | F23: 0 | G23: 0 | H23: 281 | I23: 294 | J23: 575
A24: 19 | B24: ZÁBOREC Vojta | C24: 2004 | D24: 0 | E24: 0905 - SSK Liberec | F24: 0 | G24: 0 | H24: 286 | I24: 285 | J24: 571
A25: 20 | B25: NAGY Ondřej | C25: 2006 | D25: 41040 | E25: 0200 - SSK Manušice | F25: 0 | G25: 277 | H25: 271 | I25: 0 | J25: 548
A26: 21 | B26: VÍCHA Adam | C26: 2005 | D26: 0 | E26: 0366 - SSK Ruprechtice | F26: 0 | G26: 0 | H26: 210 | I26: 246 | J26: 456
A27: 22 | B27: JENIŠTOVÁ Kateřina | C27: 2004 | D27: 40760 | E27: 0049 - SSK Vlašim | F27: 0 | G27: 281 | H27: 0 | I27: 0 | J27: 281
A28: 23 | B28: NĚMEC Jakub | C28: 2005 | D28: 0 | E28: 0200-SSK Manušice | F28: 0 | G28: 0 | H28: 0 | I28: 276 | J28: 276
A29: 23 | B29: PRCHAL Matouš | C29: 2005 | D29: 0 | E29: 0200-SSK Manušice | F29: 0 | G29: 0 | H29: 0 | I29: 276 | J29: 276
A30: 25 | B30: HOUŽVIČKA Filip | C30: 2004 | D30: 0 | E30: 0032-Poděbrady | F30: 0 | G30: 0 | H30: 0 | I30: 273 | J30: 273
A31: 26 | B31: HYLÁK Radoslav | C31: 2004 | E31: 0055-LOYD | F31: 0 | G31: 0 | H31: 0 | I31: 244 | J31: 244
A32: 27 | B32: HOLÁ Leontýnka | C32: 2005 | D32: 0 | E32: 0055-LOYD | F32: 0 | G32: 0 | H32: 0 | I32: 243 | J32: 243
A33: 28 | B33: KOSCELANSKÁ Kateřina | C33: 2004 | D33: 0 | E33: 0055-LOYD | F33: 0 | G33: 0 | H33: 0 | I33: 239 | J33: 239
A34: 29 | B34: SCHEJBAL Radek | C34: 2005 | D34: 0 | E34: 0055-LOYD | F34: 0 | G34: 0 | H34: 0 | I34: 234 | J34: 234
A35: 30 | B35: VANĚK František | C35: 2005 | D35: 0 | E35: 0055-LOYD | F35: 0 | G35: 0 | H35: 0 | I35: 233 | J35: 233
A36: 31 | B36: VELÍŠKOVÁ Natálie | C36: 2004 | D36: 0 | E36: 0055-LOYD | F36: 0 | G36: 0 | H36: 0 | I36: 225 | J36: 225
A37: 32 | B37: VAŠKŮ Kateřina | C37: 2005 | D37: 0 | E37: 0055-LOYD | F37: 0 | G37: 0 | H37: 0 | I37: 211 | J37: 211

Sheet 14 let
A1: Liberecká vzduchovková liga 2015/16 - CELKOVÉ POŘADÍ
A2: Disciplína | E2: Vzduchová puška 30 ran vleže
A3: Kategorie | E3: Do 14 let
A4: Pořadí | B4: Příjmení | C4: Jméno | D4: RN | E4: Č. průkazu | F4: Klub | G4: 1.kolo | H4: 2.kolo | I4: 3.kolo | J4: 4.kolo | K4: Celkem
A5: 1 | B5: BUBLOVÁ | C5: Jana | D5: 2002 | E5: 40433 | F5: 0905-SSK Liberec | G5: 297 | H5: 300 | I5: 300 | J5: 300 | K5: =(SUM(G5:J5))-MIN(G5:J5) -> 900
A6: 2 | B6: ŘÍHA | C6: Jakub | D6: 2002 | E6: 40008 | F6: 0049-SSK Vlašim | G6: 299 | H6: 300 | I6: 300 | J6: 299 | K6: 899
A7: 3 | B7: HELIKAR | C7: Jan | D7: 2003 | E7: 40214 | F7: 0067-SSK Jiříkov | G7: 299 | H7: 300 | I7: 297 | J7: 299 | K7: 898
A8: 4 | B8: GOLDŠMÍD | C8: Ondřej | D8: 2002 | E8: 40394 | F8: 0348-SSK Brandýs nad Labem | G8: 299 | H8: 297 | I8: 298 | J8: 300 | K8: 897
A9: 5 | B9: KAHAN | C9: Petr | D9: 2003 | E9: 0 | F9: 0055-SSK KSS LOYD Jablonec nad Nisou | G9: 299 | H9: 297 | I9: 297 | J9: 299 | K9: 895
A10: 5 | B10: SVOBODOVÁ | C10: Veronika | D10: 2003 | E10: 0 | F10: 0200-SSK Manušice | G10: 299 | H10: 296 | I10: 298 | J10: 298 | K10: 895
A11: 5 | B11: PÍREK | C11: Martin | D11: 2002 | E11: 39203 | F11: 0200-SSK Manušice | G11: 298 | H11: 296 | I11: 299 | J11: 298 | K11: 895
A12: 8 | B12: NEDVĚD | C12: Matěj | D12: 2003 | E12: 39920 | F12: 0301-SSK Stromovka České Budějovice | G12: 298 | H12: 296 | I12: 298 | J12: 298 | K12: 894
A13: 9 | B13: NOVOTNÝ | C13: Lukáš | D13: 2003 | F13: 0045-SSK DDM Kolín | G13: 297 | H13: 0 | I13: 298 | J13: 298 | K13: 893
A14: 10 | B14: KUČERA | C14: Daniel | D14: 2002 | E14: 39368 | F14: 0190-SSK Přezletice | G14: 298 | H14: 292 | I14: 296 | J14: 298 | K14: 892
A15: 10 | B15: BÍLEK | C15: Ondřej | D15: 2003 | E15: 39986 | F15: 0200-SSK Manušice | G15: 292 | H15: 296 | I15: 296 | J15: 300 | K15: 892
A16: 12 | B16: BURDOVÁ | C16: Jana | D16: 2003 | E16: 40431 | F16: 0905-SSK Liberec | G16: 296 | H16: 297 | I16: 298 | J16: 0 | K16: 891
A17: 12 | B17: REJNART | C17: Karel | D17: 2002 | E17: 0 | F17: 0055-SSK KSS LOYD Jablonec nad Nisou | G17: 276 | H17: 296 | I17: 298 | J17: 297 | K17: 891
A18: 14 | B18: LINHARTOVÁ | C18: Magdaléna | D18: 2002 | E18: 40880 | F18: 0205-SSK ŠKODA Mladá Boleslav | G18: 0 | H18: 294 | I18: 297 | J18: 299 | K18: 890
A19: 15 | B19: SEMECKÝ | C19: Ondřej | D19: 2003 | E19: 40174 | F19: 0190-SSK Přezletice | G19: 294 | H19: 296 | I19: 299 | J19: 285 | K19: 889
A20: 16 | B20: FADRHONC | C20: Lukáš | D20: 2003 | E20: 40152 | F20: 0032-SSK Bohemia Poděbrady | G20: 298 | H20: 285 | I20: 294 | J20: 296 | K20: 888
A21: 17 | B21: SEHNAL | C21: Ondřej | D21: 2002 | E21: 40139 | F21: 0200-SSK Manušice | G21: 294 | H21: 299 | I21: 294 | J21: 293 | K21: 887
A22: 17 | B22: RABOCH | C22: Vít | D22: 2003 | E22: 39579 | F22: 0190-SSK Přezletice | G22: 0 | H22: 295 | I22: 297 | J22: 295 | K22: 887
A23: 19 | B23: DESENSKÁ | C23: Eliška | D23: 2003 | E23: 0 | F23: 0055-SSK KSS LOYD Jablonec nad Nisou | G23: 294 | H23: 293 | I23: 274 | J23: 294 | K23: 881
A24: 20 | B24: ZERZÁN | C24: Ondřej | D24: 2003 | E24: 40870 | F24: 0905-SSK Liberec | G24: 290 | H24: 269 | I24: 291 | J24: 291 | K24: 872
A25: 21 | B25: HÁJKOVÁ | C25: Barbora | D25: 2003 | E25: 40803 | F25: 0045-SSK DDM Kolín | G25: 0 | H25: 291 | I25: 292 | J25: 288 | K25: 871
A26: 22 | B26: PATKA | C26: Jan | D26: 2003 | E26: 0 | F26: 0366-SSK Ruprechtice | G26: 282 | H26: 290 | I26: 291 | J26: 288 | K26: 869
A27: 23 | B27: KLAUS | C27: Vojtěch | D27: 2003 | E27: 0 | F27: 0200-SSK Manušice | G27: 289 | H27: 289 | I27: 288 | J27: 290 | K27: 868
A28: 24 | B28: LANDOVÁ | C28: Kateřina | D28: 2002 | E28: 40513 | F28: 0055-SSK KSS LOYD Jablonec nad Nisou | G28: 0 | H28: 297 | I28: 277 | J28: 276 | K28: 850
A29: 25 | B29: HUSÁK | C29: Martin | D29: 2003 | E29: 0 | F29: 0159-SSK Chrastava | G29: 0 | H29: 269 | I29: 285 | J29: 292 | K29: 846
A30: 26 | B30: MARK | C30: Rudolf | D30: 2003 | E30: 0 | F30: 0067-SSK Jiříkov | G30: 267 | H30: 279 | I30: 277 | J30: 284 | K30: 840
A31: 27 | B31: ŠEDKOVÁ | C31: Anežka | D31: 2002 | E31: 40868 | F31: 0905-SSK Liberec | G31: 261 | H31: 268 | I31: 248 | J31: 283 | K31: 812
A32: 28 | B32: KOČÍ | C32: Martin | D32: 2002 | E32: 0 | F32: 0905-SSK Liberec | G32: 250 | H32: 272 | I32: 287 | J32: 0 | K32: 809
A33: 29 | B33: KOUŇOVSKÝ | C33: Jiří | D33: 2002 | E33: 40663 | F33: 0069-SSK DUEL Praha | G33: 0 | H33: 243 | I33: 285 | J33: 274 | K33: 802
A34: 30 | B34: BŘICHŇÁČ | C34: Václav | D34: 0 | E34: 0 | F34: 0055-SSK KSS LOYD Jablonec nad Nisou | G34: 233 | H34: 248 | I34: 261 | J34: 269 | K34: 778
A35: 31 | B35: HÁŽ | C35: Lukáš | D35: 2003 | E35: 0 | F35: 0055-SSK KSS LOYD Jablonec nad Nisou | G35: 250 | H35: 263 | I35: 254 | J35: 0 | K35: 767
A36: 32 | B36: MEJDA | C36: Jiří | D36: 2002 | E36: 39978 | F36: 0045-SSK DDM Kolín | G36: 0 | H36: 298 | I36: 295 | J36: 0 | K36: 593
A37: 33 | B37: HEŘMAN | C37: Ondřej | D37: 2002 | E37: 39318 | F37: 0348-SSK Brandýs nad Labem | G37: 294 | H37: 0 | I37: 293 | J37: 0 | K37: 587
A38: 34 | B38: DOLEŽAL | C38: Jakub | D38: 2002 | E38: 0 | F38: 0055-SSK KSS LOYD Jablonec nad Nisou | G38: 0 | H38: 249 | I38: 0 | J38: 256 | K38: 505
A39: 35 | B39: RŮŽIČKA | C39: Jan | D39: 2003 | E39: 0 | F39: 0366-SSK Ruprechtice | G39: 0 | H39: 248 | I39: 231 | J39: 0 | K39: 479
A40: 36 | B40: BENOVÁ | C40: Klára | D40: 2002 | E40: 40177 | F40: 0027 - SSK Delta Praha | G40: 0 | H40: 0 | I40: 300 | J40: 0 | K40: 300
A41: 37 | B41: SVOZILOVÁ | C41: Alice | D41: 2003 | E41: 40826 | F41: 0027 - SSK Delta Praha | G41: 0 | H41: 0 | I41: 295 | J41: 0 | K41: 295
A42: 38 | B42: MOTYČKOVÁ | C42: Zuzana | D42: 2003 | E42: 40674 | F42: 0027 - SSK Delta Praha | G42: 0 | H42: 0 | I42: 295 | J42: 0 | K42: 295
A43: 39 | B43: PITRÁK | C43: Matěj | D43: 2003 | E43: 40179 | F43: 0027 - SSK Delta Praha | G43: 0 | H43: 0 | I43: 289 | J43: 0 | K43: 289
A44: 40 | B44: HOLÁT | C44: Michal | D44: 2002 | F44: 0905-SSK Liberec | G44: 0 | H44: 0 | I44: 0 | J44: 277 | K44: 277
A45: 41 | B45: FORMANOVÁ | C45: Eva | D45: 2003 | E45: 0 | F45: 0055-SSK KSS LOYD Jablonec nad Nisou | G45: 0 | H45: 261 | I45: 0 | J45: 0 | K45: 261
A46: 42 | B46: ČERNÝ | C46: Vojta | D46: 2002 | F46: 0905-SSK Liberec | G46: 0 | H46: 0 | I46: 0 | J46: 255 | K46: 255
A47: 43 | B47: LIBEŇSKÁ | C47: Simona | D47: 2003 | F47: 0905-SSK Liberec | G47: 0 | H47: 0 | I47: 186 | J47: 0 | K47: 186

Sheet Pu 16
A1: Liberecká vzduchovková liga 2015/16 - CELKOVÉ POŘADÍ
A2: Disciplína | C2: Vzduchová puška 40 ran ISSF
A3: Kategorie | C3: Do 16 let
A5: Pořadí | B5: Jméno | C5: RN | D5: Č. průkazu | E5: Klub | F5: 1.kolo | G5: 2.kolo | H5: 3.kolo | I5: 4.kolo | J5: Celkem
A6: 1 | B6: BRABCOVÁ Karolína | C6: 2000 | D6: 35852 | E6: 0200 - SSK Manušice | F6: 400.5 | G6: 402 | H6: 405.2 | I6: 411.6 | J6: =(SUM(F6:I6))-MIN(F6:I6) -> 1218.8
A7: 2 | B7: NEUMANOVÁ Barbora | C7: 2001 | D7: 39461 | E7: 0045 - SSK DDM Kolín | F7: 401.1 | G7: 393 | H7: 404.6 | I7: 401.2 | J7: 1206.9
A8: 3 | B8: KIMÁKOVÁ Kateřina | C8: 2000 | D8: 39902 | E8: 0366 - SSK Ruprechtice | F8: 404 | G8: 398.7 | H8: 394.3 | I8: 402 | J8: 1204.7
A9: 4 | B9: ŠULCOVÁ Kateřina | C9: 2000 | D9: 39448 | E9: 0366 - SSK Ruprechtice | F9: 396.9 | G9: 391.1 | H9: 397.4 | I9: 406.2 | J9: 1200.5
A10: 5 | B10: DITTRICHOVÁ Denisa | C10: 2000 | D10: 40577 | E10: 0200 - SSK Manušice | F10: 387 | G10: 396.2 | H10: 398.9 | I10: 401 | J10: 1196.1
A11: 6 | B11: SKALOVÁ Kateřina | C11: 2000 | D11: 39974 | E11: 0045 - SSK DDM Kolín | F11: 397.5 | G11: 396.2 | H11: 394.9 | I11: 401.9 | J11: 1195.6
A12: 7 | B12: ČALKOVSKÝ Mojmír | C12: 2000 | D12: 39914 | E12: 0190 - SSK Přezletice | F12: 402.6 | G12: 394.2 | H12: 0 | I12: 395 | J12: 1191.8
A13: 8 | B13: ZMÁTLO Matěj | C13: 2001 | D13: 39275 | E13: 0045 - SSK DDM Kolín | F13: 0 | G13: 391 | H13: 390.7 | I13: 385.9 | J13: 1167.6
A14: 9 | B14: KUBR Josef | C14: 2001 | D14: 39033 | E14: 0366 - SSK Ruprechtice | F14: 373.7 | G14: 373.1 | H14: 387.3 | I14: 392.1 | J14: 1153.1
A15: 10 | B15: LUČAN Vladimír | C15: 2001 | D15: 39317 | E15: 0348 - SSK Brandýs nad Labem | F15: 373.8 | G15: 387.3 | H15: 382.8 | I15: 377.6 | J15: 1147.7
A16: 11 | B16: HERÁK David | C16: 2001 | D16: 40662 | E16: 0200 - SSK Manušice | F16: 355.5 | G16: 362.1 | H16: 377.5 | I16: 0 | J16: 1095.1
A17: 12 | B17: NYKL Lukáš | C17: 2001 | D17: 39462 | E17: 0045 - SSK DDM Kolín | F17: 0 | G17: 348.5 | H17: 368.8 | I17: 356 | J17: 1073.3
A18: 13 | B18: NAVRÁTIL Michal | C18: 2000 | D18: 39325 | E18: 0032 - SSK Bohemia Poděbrady | F18: 347.5 | G18: 354.3 | H18: 358.7 | I18: 348.6 | J18: 1061.6
A19: 14 | B19: SEHNAL Ondřej | C19: 2002 | D19: 40139 | E19: 0200 - SSK Manušice | F19: 0 | G19: 358 | H19: 332.3 | I19: 364.4 | J19: 1054.7
A20: 15 | B20: PÍREK Martin | C20: 2002 | D20: 39203 | E20: 0200 - SSK Manušice | F20: 0 | G20: 319.7 | H20: 323.8 | I20: 343.5 | J20: 987
A21: 16 | B21: BUBLOVÁ Jana | C21: 2002 | D21: 40433 | E21: 0905 - Liberec | F21: 0 | G21: 0 | H21: 370.3 | I21: 361.3 | J21: 731.6
A22: 17 | B22: DEVERA Ondřej | C22: 2001 | D22: 0 | E22: 0366 - SSK Ruprechtice | F22: 0 | G22: 262.8 | H22: 266.8 | I22: 0 | J22: 529.6
A23: 18 | B23: BODANSKÝ Vít | C23: 2001 | D23: 39889 | E23: 0032 - SSK Bohemia Poděbrady | F23: 0 | G23: 0 | H23: 196.8 | I23: 312.1 | J23: 508.9
A24: 19 | B24: MEJDA Jiří | C24: 2002 | D24: 39978 | E24: 0045 - SSK DDM Kolín | F24: 0 | G24: 211.4 | H24: 296.3 | I24: 0 | J24: 507.7
A25: 20 | B25: VYHNÁLKOVÁ Lucie | C25: 2001 | D25: 39410 | E25: 0253 - Sezemice | F25: 391.8 | G25: 0 | H25: 0 | I25: 0 | J25: 391.8
A26: 21 | B26: TRÁVNÍČEK Jaroslav | C26: 2000 | D26: 40400 | E26: 0190 - SSK Přezletice | F26: 381.4 | G26: 0 | H26: 0 | I26: 0 | J26: 381.4
A27: 22 | B27: HLINĚNÁ Zuzana | C27: 2000 | D27: 0 | E27: 0032 - SSK Bohemia Poděbrady | F27: 0 | G27: 0 | H27: 0 | I27: 329.7 | J27: 329.7
A28: 23 | B28: STARÝ Václav | C28: 2001 | D28: 0 | E28: 0905-SSK Liberec | F28: 0 | G28: 0 | H28: 0 | I28: 266.1 | J28: 266.1
A29: 24 | B29: WÜNSCH Daniel | C29: 2001 | D29: 0 | E29: 0055 - SSK KSS LOYD Jablonec nad Nisou | F29: 0 | G29: 234.7 | H29: 0 | I29: 0 | J29: 234.7
A30: 25 | B30: RŮTA Martin | C30: 2001 | D30: 0 | E30: 0055 - SSK KSS LOYD Jablonec nad Nisou | F30: 0 | G30: 228.4 | H30: 0 | I30: 0 | J30: 228.4

Sheet Pu dorost
A1: Liberecká vzduchovková liga 2015/16 - CELKOVÉ POŘADÍ
A2: Disciplína | C2: Vzduchová puška 40 ran ISSF
A3: Kategorie | C3: Dorost
A5: Pořadí | B5: Jméno | C5: RN | D5: Č. průkazu | E5: Klub | F5: 1.kolo | G5: 2.kolo | H5: 3.kolo | I5: 4.kolo | J5: Celkem
A6: 1 | B6: BARTONÍČKOVÁ Vlasta | C6: 1999 | D6: 38265 | E6: 0200 - SSK Manušice | F6: 406.2 | G6: 411 | H6: 409.1 | I6: 409.3 | J6: =(SUM(F6:I6))-MIN(F6:I6) -> 1229.4
A7: 2 | B7: BYAMBAA Anarzaya | C7: 1999 | D7: 40093 | E7: 0200 - SSK Manušice | F7: 403.1 | G7: 396.6 | H7: 394.1 | I7: 392.8 | J7: 1193.8
A8: 3 | B8: KLIMENT Dominik | C8: 1998 | D8: 38525 | E8: 0348 - SSK Brandýs nad Labem | F8: 382.8 | G8: 392.2 | H8: 391.4 | I8: 0 | J8: 1166.4
A9: 4 | B9: HŘÍBAL Antonín | C9: 1999 | D9: 38835 | E9: 0190 - SSK Přezletice | F9: 0 | G9: 394.2 | H9: 392 | I9: 378.7 | J9: 1164.9
A10: 5 | B10: ADOMAVIČIUS Tomas | C10: 1998 | D10: 39447 | E10: 0366 - SSK Ruprechtice | F10: 0 | G10: 385.9 | H10: 384.7 | I10: 381.5 | J10: 1152.1
A11: 6 | B11: ŠKRBEL Vít | C11: 1999 | D11: 0 | E11: 0905 - SSK Liberec | F11: 0 | G11: 298.5 | H11: 320.5 | I11: 348.1 | J11: 967.1
A12: 7 | B12: POLÁŠEK Patrik | C12: 1998 | D12: 0 | E12: 0366 - SSK Ruprechtice | F12: 285.7 | G12: 341.8 | H12: 319.7 | I12: 0 | J12: 947.2
A13: 8 | B13: STUDENÁ Adéla | C13: 1998 | D13: 39245 | E13: 0013 - SSK DDM Praha 5 | F13: 404.1 | G13: 406.5 | H13: 0 | I13: 0 | J13: 810.6
A14: 9 | B14: BAJANOVÁ Lucie | C14: 1998 | D14: 39446 | E14: 0366 - Ruprechtice Liberec | F14: 398.3 | G14: 0 | H14: 399.7 | I14: 0 | J14: 798
A15: 10 | B15: MOKRIŠ Benjamin | C15: 1999 | D15: 39720 | E15: 0013 - SSK DDM Praha 5 | F15: 398.2 | G15: 0 | H15: 386.4 | I15: 0 | J15: 784.6
A16: 11 | B16: HRUŠKOVÁ Adéla | C16: 1998 | D16: 41018 | E16: 0055 - SSK KSS LOYD Jablonec nad Nisou | F16: 352.4 | G16: 356.2 | H16: 0 | I16: 0 | J16: 708.6
A17: 12 | B17: HROBAŘOVÁ Lenka | C17: 1998 | D17: 38043 | E17: 0253 - Sezemice | F17: 385.6 | G17: 0 | H17: 0 | I17: 0 | J17: 385.6
A18: Mimo | B18: PROKOPIČ Jan | C18: 1997 | D18: 0 | E18: 0055 - SSK KSS LOYD Jablonec nad Nisou | F18: 0 | G18: 284.3 | H18: 0 | I18: 0 | J18: =(SUM(F18:I18))-MIN(F18:I18) -> 284.3

Sheet Pu ženy
A1: Liberecká vzduchovková liga 2015/16 - CELKOVÉ POŘADÍ
A2: Disciplína | C2: Vzduchová puška 40 ran ISSF
A3: Kategorie | C3: Ženy
A5: Pořadí | B5: Jméno | C5: RN | D5: Č. průkazu | E5: Klub | F5: 1.kolo | G5: 2.kolo | H5: 3.kolo | I5: 4.kolo | J5: Celkem
A6: 1 | B6: ŠIRLOVÁ Michaela | C6: 1995 | D6: 37102 | E6: 0200 - SSK Manušice | F6: 411.3 | G6: 403.7 | H6: 412 | I6: 416.5 | J6: =(SUM(F6:I6))-MIN(F6:I6) -> 1239.8
A7: 2 | B7: BARTOŠOVÁ Klára | C7: 1988 | D7: 35008 | E7: 0056 - SSK COSMANOS | F7: 0 | G7: 409.4 | H7: 404.7 | I7: 406.1 | J7: 1220.2
A8: 3 | B8: JANOUŠKOVÁ Kateřina | C8: 1996 | D8: 36653 | E8: 0366 - SSK Ruprechtice | F8: 405.5 | G8: 401.6 | H8: 407 | I8: 0 | J8: 1214.1
A9: 4 | B9: BYAMBAA Bilguunzaya | C9: 1996 | D9: 40092 | E9: 0200 - SSK Manušice | F9: 403.9 | G9: 403.7 | H9: 402.4 | I9: 402.3 | J9: 1210
A10: 5 | B10: BORKOVCOVÁ Klára | C10: 1996 | D10: 37418 | E10: 0056 - SSK COSMANOS | F10: 402.5 | G10: 400.3 | H10: 402 | I10: 0 | J10: 1204.8
A11: 6 | B11: JECHOVÁ Marie | C11: 1990 | D11: 33716 | E11: 0032 - SSK Bohemia Poděbrady | F11: 395.7 | G11: 397.9 | H11: 396.9 | I11: 402.7 | J11: 1197.5
A12: 7 | B12: ČERNÁ Kristýna | C12: 1996 | D12: 38564 | E12: Kolín | F12: 394.6 | G12: 0 | H12: 402.7 | I12: 399.6 | J12: 1196.9
A13: 8 | B13: HUBENÁ Šárka | C13: 1977 | D13: 40136 | E13: 0200 - SSK Manušice | F13: 370.9 | G13: 377.7 | H13: 388.4 | I13: 394.7 | J13: 1160.8
A14: 9 | B14: KUČEROVÁ Miroslava | C14: 1962 | D14: 1719 | E14: 0200 - SSK Manušice | F14: 320.6 | G14: 338.1 | H14: 323.8 | I14: 0 | J14: 982.5
A15: 10 | B15: POCHYLOVÁ Hana | C15: 1980 | D15: 4823 | E15: 0055 - SSK KSS LOYD Jablonec nad Nisou | F15: 392.5 | G15: 390.5 | H15: 0 | I15: 0 | J15: 783
A16: 11 | B16: KOŽURIKOVÁ Daniela | C16: 1987 | D16: 30740 | E16: 0032 - SSK Bohemia Poděbrady | F16: 0 | G16: 378.9 | H16: 380.1 | I16: 0 | J16: 759
A17: 12 | B17: HULÍKOVÁ Dana | C17: 1972 | D17: 3835 | E17: 0055 - SSK KSS LOYD Jablonec nad Nisou | F17: 0 | G17: 396.7 | H17: 0 | I17: 0 | J17: 396.7
A18: 13 | B18: VINŠOVÁ Johana | C18: 1997 | D18: 38742 | E18: Kolín | F18: 386.5 | G18: 0 | H18: 0 | I18: 0 | J18: 386.5
A19: 14 | B19: PUTNOVÁ Ivana | C19: 1962 | E19: 00905-SSK Liberec | F19: 0 | G19: 0 | H19: 0 | I19: 378.3 | J19: 378.3

Sheet Pu muži
A1: Liberecká vzduchovková liga 2015/16 - CELKOVÉ POŘADÍ
A2: Disciplína | C2: Vzduchová puška 60 ran ISSF
A3: Kategorie | C3: Muži
A5: Pořadí | B5: Jméno | C5: RN | D5: Č. průkazu | E5: Klub | F5: 1.kolo | G5: 2.kolo | H5: 3.kolo | I5: 4.kolo | J5: Celkem
A6: 1 | B6: ŠPITÁLSKÝ Jaroslav | C6: 1997 | D6: 37692 | E6: 0200 - SSK Manušice | F6: 597.2 | G6: 606.3 | H6: 614.6 | I6: 606.7 | J6: =(SUM(F6:I6))-MIN(F6:I6) -> 1827.6
A7: 2 | B7: MIKULČÍK Radek | C7: 1999 | D7: 38925 | E7: 0905 - SSK Liberec | F7: 609.8 | G7: 607.6 | H7: 601.2 | I7: 609.3 | J7: 1826.7
A8: 3 | B8: ŠMÍD Václav | C8: 1989 | D8: 31125 | E8: 0045 - SSK DDM Kolín | F8: 0 | G8: 611.3 | H8: 603 | I8: 602.9 | J8: 1817.2
A9: 4 | B9: KASPER Tomáš | C9: 1987 | D9: 29971 | E9: 0368 - SSK Poruba,Skalka | F9: 0 | G9: 599 | H9: 608.3 | I9: 608.4 | J9: 1815.7
A10: 5 | B10: BOHÁČEK Pavel | C10: 1973 | D10: 1463 | E10: 0905 - SSK Liberec | F10: 585.1 | G10: 601.5 | H10: 594.6 | I10: 597.1 | J10: 1793.2
A11: 6 | B11: JANOUŠEK Petr | C11: 1966 | D11: 1464 | E11: 0366 - SSK Ruprechtice | F11: 583.2 | G11: 577.4 | H11: 573.3 | I11: 574.5 | J11: 1735.1
A12: 7 | B12: MIKULČÍK Hynek | C12: 1970 | D12: 39445 | E12: 0905 - SSK Liberec | F12: 550.5 | G12: 578.7 | H12: 564.6 | I12: 573.4 | J12: 1716.7
A13: 8 | B13: FEJFAR Patrik | C13: 1996 | D13: 36537 | E13: 0032 - SSK Bohemia Poděbrady | F13: 555.2 | G13: 578.5 | H13: 556 | I13: 569.8 | J13: 1704.3
A14: 9 | B14: KONEČNÝ Martin | C14: 1970 | D14: 20153 | E14: 0055 - SSK KSS LOYD Jablonec nad Nisou | F14: 562.6 | G14: 559.4 | H14: 571.3 | I14: 0 | J14: 1693.3
A15: 10 | B15: KLINGER Petr | C15: 1966 | D15: 5855 | E15: 0159 - SSK Chrastava | F15: 565.5 | G15: 553.1 | H15: 567.8 | I15: 548.6 | J15: 1686.4
A16: 11 | B16: ZÁBOREC Petr | C16: 1974 | D16: 0 | E16: 0905 - SSK Liberec | F16: 0 | G16: 515.1 | H16: 545.3 | I16: 574.9 | J16: 1635.3
A17: 12 | B17: PAVLÍČEK Miroslav | C17: 1983 | D17: 0 | E17: 0905 - SSK Liberec | F17: 495.2 | G17: 516.9 | H17: 539 | I17: 544.5 | J17: 1600.4
A18: 13 | B18: REGNER Tomáš | C18: 1975 | D18: 0 | E18: 0905 - SSK Liberec | F18: 527.5 | G18: 452 | H18: 468 | I18: 0 | J18: 1447.5
A19: 14 | B19: BROŽEK Roman | C19: 1976 | D19: 3845 | E19: 0055 - SSK KSS LOYD Jablonec nad Nisou | F19: 609.7 | G19: 606.2 | H19: 0 | I19: 0 | J19: 1215.9
A20: 15 | B20: GOTTLIEB Michal | C20: 1997 | D20: 37890 | E20: 0348 - SSK Brandýs nad Labem | F20: 0 | G20: 580.1 | H20: 579 | I20: 0 | J20: 1159.1
A21: 16 | B21: CYPRICH Luboš | C21: 1967 | D21: 7022 | E21: 0043 - SSK Děčín | F21: 0 | G21: 552.5 | H21: 553.1 | I21: 0 | J21: 1105.6
A22: 17 | B22: NOVÁK Jakub | C22: 1994 | D22: 35304 | E22: 0253 - Sezemice | F22: 609 | G22: 0 | H22: 0 | I22: 0 | J22: 609
A23: 18 | B23: TUČEK Martin | C23: 1998 | D23: 36223 | E23: 0200 - Manušice | F23: 588.4 | G23: 0 | H23: 0 | I23: 0 | J23: 588.4
A24: 19 | B24: ZÁLIGER Tomáš | C24: 1996 | D24: 36028 | E24: 0045 - SSK DDM Kolín | F24: 0 | G24: 0 | H24: 574.3 | I24: 0 | J24: 574.3
A25: 20 | B25: HNIDA David | C25: 1995 | D25: 37249 | E25: 0045 - SSK DDM Kolín | F25: 0 | G25: 0 | H25: 564 | I25: 0 | J25: 564
A26: 21 | B26: VÁCLAVÍK Tomáš | C26: 1986 | E26: 0200 - Manušice | F26: 537.4 | G26: 0 | H26: 0 | I26: 0 | J26: 537.4

Sheet Pu sen.
A1: Liberecká vzduchovková liga 2015/16 - CELKOVÉ POŘADÍ
A2: Disciplína | C2: Vzduchová puška 60 ran ISSF
A3: Kategorie | C3: Senioři
A5: Pořadí | B5: Jméno | C5: RN | D5: Č. průkazu | E5: Klub | F5: 1.kolo | G5: 2.kolo | H5: 3.kolo | I5: 4.kolo | J5: Celkem
A6: 1 | B6: DOLEŽAL Jaroslav | C6: 1956 | D6: 21 | E6: 0032 - SSK Bohemia Poděbrady | F6: 570.9 | G6: 565.4 | H6: 578.1 | I6: 564.6 | J6: =(SUM(F6:I6))-MIN(F6:I6) -> 1714.4
A7: 2 | B7: RAJNOHA Josef | C7: 1956 | D7: 8332 | E7: 0159 - SSK Chrastava | F7: 566.8 | G7: 564 | H7: 561.7 | I7: 559.6 | J7: 1692.5
A8: 3 | B8: KLIMÁNEK Miroslav | C8: 1952 | D8: 3836 | E8: 0055 - SSK KSS LOYD Jablonec nad Nisou | F8: 572.3 | G8: 558.7 | H8: 541.6 | I8: 558.1 | J8: 1689.1
A9: 4 | B9: KUČERA Zdeněk | C9: 1961 | D9: 1718 | E9: 0200 - SSK Manušice | F9: 555.8 | G9: 553.4 | H9: 553.8 | I9: 569.2 | J9: 1678.8
A10: 5 | B10: ŠŤASTNÝ Zdeněk | C10: 1948 | D10: 6809 | E10: 0437 - SSK SPORCK Stará Lysá | F10: 557.3 | G10: 555.3 | H10: 554 | I10: 555.2 | J10: 1667.8
A11: 6 | B11: MIŠKOVSKÝ Jiří | C11: 1947 | D11: 1507 | E11: 0905 - SSK Liberec | F11: 539 | G11: 534.4 | H11: 555.8 | I11: 517.8 | J11: 1629.2
A12: 7 | B12: TÁBORSKÝ Josef | C12: 1938 | D12: 5821 | E12: 0214 - SSK Ostroměř | F12: 527.4 | G12: 528 | H12: 0 | I12: 0 | J12: 1055.4
A13: 8 | B13: KAFKA Josef | C13: 1947 | D13: 4959 | E13: 0067-SSK Jiříkov | F13: 0 | G13: 0 | H13: 0 | I13: 511.8 | J13: 511.8
A14: 9 | B14: KASTL Pavel | D14: 4957 | E14: 0067-SSK Jiříkov | F14: 0 | G14: 0 | H14: 0 | I14: 487.2 | J14: 487.2

Sheet Pi dorost
A1: Liberecká vzduchovková liga 2015/16 - CELKOVÉ POŘADÍ
A2: Disciplína | C2: Vzduchová pistole 40 ran
A3: Kategorie | C3: Dorost
A5: Pořadí | B5: Jméno | C5: RN | D5: Č. průkazu | E5: Klub | F5: 1.kolo | G5: 2.kolo | H5: 3.kolo | I5: 4.kolo | J5: Celkem
A6: 1 | B6: PLÍŠEK Jindřich | C6: 1999 | D6: 39611 | E6: 0003 - SSK 3. uliční Česká Lípa | F6: 363 | G6: 360 | H6: 0 | I6: 371 | J6: =(SUM(F6:I6))-MIN(F6:I6) -> 1094
A7: 2 | B7: KOČÍ Jiří | C7: 2000 | D7: 40358 | E7: 0055 - SSK KSS LOYD Jablonec nad Nisou | F7: 317 | G7: 357 | H7: 359 | I7: 357 | J7: 1073
A8: 3 | B8: HLAVÁČ Stanislav | C8: 1999 | D8: 40494 | E8: 0069 - SSK DUEL Praha | F8: 339 | G8: 0 | H8: 346 | I8: 354 | J8: 1039
A9: 3 | B9: NĚMEC Robert | C9: 2000 | D9: 40667 | E9: 0069 - SSK DUEL Praha | F9: 323 | G9: 354 | H9: 352 | I9: 333 | J9: 1039
A10: 5 | B10: BARABASHEV Daniil | C10: 2000 | D10: 0 | E10: 0013 - DDM Praha 5 | F10: 340 | G10: 0 | H10: 356 | I10: 324 | J10: 1020
A11: 6 | B11: ŠTULÍKOVÁ Veronika | C11: 2000 | D11: 40357 | E11: 0055 - SSK KSS LOYD Jablonec nad Nisou | F11: 321 | G11: 349 | H11: 313 | I11: 331 | J11: 1001
A12: 7 | B12: DROBNÝ David | C12: 1999 | D12: 40140 | E12: 0200 - SSK Manušice | F12: 333 | G12: 301 | H12: 0 | I12: 325 | J12: 959
A13: 8 | B13: HRUBEŠOVÁ Veronika | C13: 2003 | D13: 0 | E13: 0055 - SSK KSS LOYD Jablonec nad Nisou | F13: 305 | G13: 319 | H13: 322 | I13: 305 | J13: 946
A14: 9 | B14: KOPRIVNIKAR Jiří | C14: 2001 | D14: 41073 | E14: 0055 - SSK KSS LOYD Jablonec nad Nisou | F14: 0 | G14: 295 | H14: 319 | I14: 292 | J14: 906
A15: 10 | B15: VOSTŘEL Daniel | C15: 2000 | D15: 40668 | E15: 0069 - SSK DUEL Praha | F15: 252 | G15: 263 | H15: 306 | I15: 319 | J15: 888
A16: 11 | B16: KLIMÁNEK Kristian | C16: 2000 | D16: 0 | E16: 0055 - SSK KSS LOYD Jablonec nad Nisou | F16: 0 | G16: 0 | H16: 341 | I16: 344 | J16: 685
A17: 12 | B17: VIKTOROVÁ Alena | C17: 1998 | D17: 41085 | E17: 0069 - SSK DUEL Praha | F17: 0 | G17: 0 | H17: 294 | I17: 332 | J17: 626
A18: 13 | B18: CHMEL Petr | C18: 1998 | D18: 37773 | E18: 0069 - SSK DUEL Praha | F18: 0 | G18: 0 | H18: 363 | I18: 0 | J18: 363
A19: 14 | B19: KAMENICKÝ Ondřej | C19: 1998 | D19: 0 | E19: 0253 - Sezemice | F19: 353 | G19: 0 | H19: 0 | I19: 0 | J19: 353
A20: 15 | B20: TOMŠÍČEK Ámos | C20: 2001 | D20: 0 | E20: 0069 - SSK DUEL Praha | F20: 325 | G20: 0 | H20: 0 | I20: 0 | J20: 325
A21: 16 | B21: BRDÍČKOVÁ Šárka | C21: 2001 | D21: 41086 | E21: 0069-SSK DUEL Praha | F21: 0 | G21: 0 | H21: 0 | I21: 277 | J21: 277

Sheet Pi ženy
A1: Liberecká vzduchovková liga 2015/16 - CELKOVÉ POŘADÍ
A2: Disciplína | C2: Vzduchová pistole 40 ran
A3: Kategorie | C3: Ženy
A5: Pořadí | B5: Jméno | C5: RN | D5: Č. průkazu | E5: Klub | F5: 1.kolo | G5: 2.kolo | H5: 3.kolo | I5: 4.kolo | J5: Celkem
A6: 1 | B6: KOŽUCHOVÁ Karolina | C6: 1981 | D6: 39234 | E6: 0772 - SSK Liberec KPK | F6: 366 | G6: 369 | H6: 365 | I6: 0 | J6: =(SUM(F6:I6))-MIN(F6:I6) -> 1100
A7: 2 | B7: KOČÍ Marcela | C7: 1977 | D7: 32388 | E7: 0772 - SSK Liberec KPK | F7: 366 | G7: 358 | H7: 351 | I7: 353 | J7: 1077
A8: 3 | B8: BURDOVÁ Alena | C8: 1967 | D8: 0 | E8: 0905 - SSK Liberec | F8: 340 | G8: 339 | H8: 357 | I8: 360 | J8: 1057
A9: 4 | B9: NEUBAUEROVÁ Jana | C9: 1990 | D9: 38395 | E9: 0523 - SSK Duchcov | F9: 299 | G9: 312 | H9: 0 | I9: 0 | J9: 611
A10: 5 | B10: KIMÁKOVÁ Martina | C10: 1974 | D10: 40584 | E10: 0366-SSK Ruprechtice | F10: 0 | G10: 0 | H10: 278 | I10: 289 | J10: 567
A11: 6 | B11: VRTIŠKOVÁ Renata | C11: 1964 | D11: 17780 | E11: 0069 - SSK DUEL Praha | F11: 0 | G11: 334 | H11: 0 | I11: 0 | J11: 334
A12: 7 | B12: GÁSPÁROVÁ Klementina | C12: 1967 | D12: 3838 | E12: 0418 - SSK Stráž nad Nisou | F12: 0 | G12: 329 | H12: 0 | I12: 0 | J12: 329
A13: 8 | B13: MOKRIŠOVÁ Barbara | C13: 1963 | D13: 40753 | E13: 0013-SSK DDM Praha 5 | F13: 0 | G13: 0 | H13: 305 | I13: 0 | J13: 305

Sheet Pi muži
A1: Liberecká vzduchovková liga 2015/16 - CELKOVÉ POŘADÍ
A2: Disciplína | C2: Vzduchová pistole 60 ran
A3: Kategorie | C3: Muži
A5: Pořadí | B5: Jméno | C5: RN | D5: Č. průkazu | E5: Klub | F5: 1.kolo | G5: 2.kolo | H5: 3.kolo | I5: 4.kolo | J5: Celkem
A6: 1 | B6: BARABASHEV Pavel | C6: 1975 | D6: 39247 | E6: 0013 - DDM Praha 5 | F6: 560 | G6: 0 | H6: 567 | I6: 566 | J6: =(SUM(F6:I6))-MIN(F6:I6) -> 1693
A7: 2 | B7: TRNKA Tomáš | C7: 1966 | D7: 25312 | E7: 0069 - SSK DUEL Praha | F7: 557 | G7: 566 | H7: 561 | I7: 0 | J7: 1684
A8: 3 | B8: BLAŠKA Jiří | C8: 1968 | D8: 9117 | E8: 0905 - SSK Liberec | F8: 538 | G8: 555 | H8: 545 | I8: 540 | J8: 1640
A9: 4 | B9: PLÍŠEK Miloslav | C9: 1970 | D9: 39613 | E9: 0003 - 3. uliční Česká Lípa | F9: 546 | G9: 543 | H9: 538 | I9: 543 | J9: 1632
A10: 5 | B10: KRČMÁŘ Aleš | C10: 1973 | D10: 1516 | E10: 0772 - SSK Liberec KPK | F10: 515 | G10: 525 | H10: 523 | I10: 517 | J10: 1565
A11: 6 | B11: BALOG Pavel | C11: 1973 | D11: 28827 | E11: 0200 - SSK Manušice | F11: 501 | G11: 500 | H11: 527 | I11: 525 | J11: 1553
A12: 6 | B12: KRATOCHVÍL Ladislav | C12: 1967 | D12: 38654 | E12: 0159 - SSK Chrastava | F12: 0 | G12: 523 | H12: 509 | I12: 518 | J12: 1550
A13: 8 | B13: HRBEK Petr | C13: 1978 | D13: 38856 | E13: 0055 - SSK KSS LOYD Jablonec nad Nisou | F13: 504 | G13: 518 | H13: 514 | I13: 502 | J13: 1536
A14: 9 | B14: NOVOTNÝ Miloš | C14: 1973 | D14: 0 | E14: 0045 - SSK DDM Kolín | F14: 510 | G14: 463 | H14: 497 | I14: 505 | J14: 1512
A15: 10 | B15: POCHYLA Aleš | C15: 1973 | D15: 0 | E15: 0055 - SSK KSS LOYD Jablonec nad Nisou | F15: 509 | G15: 492 | H15: 0 | I15: 488 | J15: 1489
A16: 11 | B16: MEJDA Jiří | C16: 1974 | D16: 41027 | E16: 0045 - SSK DDM Kolín | F16: 0 | G16: 488 | H16: 509 | I16: 490 | J16: 1487
A17: 12 | B17: TESAŘ Vladimír | C17: 1974 | D17: 24415 | E17: 0003 - 3. uliční Česká Lípa | F17: 533 | G17: 0 | H17: 541 | I17: 0 | J17: 1074
A18: 13 | B18: CHMEL Karel | C18: 1969 | D18: 1575 | E18: 0069-SSK Duel | F18: 0 | G18: 0 | H18: 0 | I18: 486 | J18: 486
A19: 14 | B19: VADINSKÝ Libor | C19: 1972 | E19: 0045-SSK DDM Kolín | F19: 0 | G19: 0 | H19: 0 | I19: 459 | J19: 459

Sheet Pi sen.
A1: Liberecká vzduchovková liga - CELKOVÉ POŘADÍ
A2: Disciplína | C2: Vzduchová pistole 60 ran
A3: Kategorie | C3: Senioři
A5: Pořadí | B5: Jméno | C5: RN | D5: Č. průkazu | E5: Klub | F5: 1.kolo | G5: 2.kolo | H5: 3.kolo | I5: 4.kolo | J5: Celkem
A6: 1 | B6: PACKAN Petr | C6: 1950 | D6: 2726 | E6: 0069 - SSK DUEL Praha | F6: 567 | G6: 570 | H6: 561 | I6: 560 | J6: =(SUM(F6:I6))-MIN(F6:I6) -> 1698
A7: 2 | B7: FORMAN Josef | C7: 1960 | D7: 20112 | E7: 0205 - SSK ŠKODA Mladá Boleslav | F7: 558 | G7: 547 | H7: 553 | I7: 545 | J7: 1658
A8: 3 | B8: KOČÍ Vratislav | C8: 1957 | D8: 5826 | E8: 0772 - SSK Liberec KPK | F8: 553 | G8: 551 | H8: 541 | I8: 0 | J8: 1645
A9: 4 | B9: PRŮŠA Josef | C9: 1952 | D9: 6808 | E9: 0437 - SSK SPORCK Stará Lysá | F9: 0 | G9: 537 | H9: 537 | I9: 535 | J9: 1609
A10: 5 | B10: MERTLÍK Evžen | C10: 1958 | D10: 38881 | E10: 0200 - SSK Manušice | F10: 541 | G10: 532 | H10: 531 | I10: 0 | J10: 1604
A11: 5 | B11: STRANÍK Květoslav | C11: 1942 | D11: 14099 | E11: 0028 - SSK INVA Liberec | F11: 535 | G11: 526 | H11: 530 | I11: 539 | J11: 1604
A12: 7 | B12: POMEISL Antonín | C12: 1952 | D12: 39680 | E12: 0200 - SSK Manušice | F12: 487 | G12: 476 | H12: 495 | I12: 517 | J12: 1499
A13: 8 | B13: PETKOV Plamen | C13: 1957 | D13: 32516 | E13: 0069 - SSK DUEL Praha | F13: 0 | G13: 539 | H13: 0 | I13: 0 | J13: 539
A14: 9 | B14: TOMŠÍČEK Jan | C14: 1951 | D14: 0 | E14: 0028 - SSK INVA Liberec | F14: 0 | G14: 341 | H14: 0 | I14: 0 | J14: 341
